[Event "Live Chess"]
[Site "Chess.com"]
[Date "2023.05.20"]
[Round "-"]
[White "Tushinskiy"]
[Black "KeithArkell"]
[Result "0-1"]
[WhiteElo "2139"]
[BlackElo "2619"]
[TimeControl "300"]
[EndTime "14:33:21 PDT"]
[Termination "KeithArkell won by checkmate"]

1. d4 {[%clk 0:04:56]} 1... e6 {[%clk 0:04:57.5]} 2. c3 {[%clk 0:04:55.9]} 2...
Nf6 {[%clk 0:04:56.1]} 3. Nf3 {[%clk 0:04:52.4]} 3... b6 {[%clk 0:04:55.5]} 4.
Bg5 {[%clk 0:04:50.3]} 4... Be7 {[%clk 0:04:53.9]} 5. Nbd2 {[%clk 0:04:49]} 5...
Bb7 {[%clk 0:04:52.9]} 6. Qc2 {[%clk 0:04:48]} 6... d5 {[%clk 0:04:51.6]} 7. e3
{[%clk 0:04:46]} 7... Ne4 {[%clk 0:04:49.8]} 8. Bxe7 {[%clk 0:04:40.7]} 8...
Qxe7 {[%clk 0:04:49.7]} 9. Nxe4 {[%clk 0:04:40.2]} 9... dxe4 {[%clk 0:04:49]}
10. Nd2 {[%clk 0:04:40.1]} 10... f5 {[%clk 0:04:48.5]} 11. Bc4 {[%clk
0:04:37.7]} 11... Nd7 {[%clk 0:04:47.4]} 12. a4 {[%clk 0:04:30.9]} 12... Nf6
{[%clk 0:04:46]} 13. b4 {[%clk 0:04:28.5]} 13... a6 {[%clk 0:04:44.7]} 14. Qb3
{[%clk 0:04:25.6]} 14... Bd5 {[%clk 0:04:41.4]} 15. O-O {[%clk 0:04:22.6]} 15...
O-O {[%clk 0:04:39.4]} 16. f3 {[%clk 0:04:18.3]} 16... b5 {[%clk 0:04:35.9]} 17.
axb5 {[%clk 0:04:15.5]} 17... axb5 {[%clk 0:04:35.1]} 18. Bxd5 {[%clk
0:04:14.6]} 18... exd5 {[%clk 0:04:34.3]} 19. fxe4 {[%clk 0:04:05.2]} 19... fxe4
{[%clk 0:04:31.8]} 20. h3 {[%clk 0:03:56.8]} 20... c6 {[%clk 0:04:25.1]} 21. Ra5
{[%clk 0:03:54.3]} 21... Nh5 {[%clk 0:04:10.9]} 22. Qa2 {[%clk 0:03:39.8]} 22...
Rac8 {[%clk 0:04:09.5]} 23. Rxf8+ {[%clk 0:03:29]} 23... Rxf8 {[%clk 0:04:07.5]}
24. Ra8 {[%clk 0:03:27.5]} 24... Ng3 {[%clk 0:03:59.8]} 25. Rxf8+ {[%clk
0:03:17.5]} 25... Qxf8 {[%clk 0:03:58.5]} 26. Qa7 {[%clk 0:03:13.6]} 26... h6
{[%clk 0:03:55]} 27. Qc7 {[%clk 0:03:08.9]} 27... Ne2+ {[%clk 0:03:50.2]} 28.
Kh2 {[%clk 0:03:07.5]} 28... Qf2 {[%clk 0:03:48.2]} 29. h4 {[%clk 0:02:58.9]}
29... Qxh4# {[%clk 0:03:45.3]} 0-1

[Event "Live Chess"]
[Site "Chess.com"]
[Date "2023.05.20"]
[Round "-"]
[White "therealab0ne"]
[Black "Greenbecker"]
[Result "0-1"]
[WhiteElo "701"]
[BlackElo "1637"]
[TimeControl "300"]
[EndTime "14:33:23 PDT"]
[Termination "Greenbecker won by resignation"]

1. e4 {[%clk 0:04:59.9]} 1... e6 {[%clk 0:04:58.5]} 2. d4 {[%clk 0:04:58.2]}
2... d5 {[%clk 0:04:57.9]} 3. e5 {[%clk 0:04:57.8]} 3... c5 {[%clk 0:04:56.5]}
4. Nf3 {[%clk 0:04:55.3]} 4... Nc6 {[%clk 0:04:56.1]} 5. Bb5 {[%clk 0:04:53.4]}
5... Bd7 {[%clk 0:04:54.6]} 6. Bxc6 {[%clk 0:04:52.3]} 6... Bxc6 {[%clk
0:04:53.4]} 7. O-O {[%clk 0:04:45.4]} 7... cxd4 {[%clk 0:04:50.6]} 8. Nxd4
{[%clk 0:04:43.9]} 8... Rc8 {[%clk 0:04:48]} 9. Nxc6 {[%clk 0:04:42]} 9... Rxc6
{[%clk 0:04:47.1]} 10. h4 {[%clk 0:04:14.2]} 10... Qc7 {[%clk 0:04:45.3]} 11.
Nc3 {[%clk 0:04:06]} 11... Qxe5 {[%clk 0:04:43.1]} 12. Re1 {[%clk 0:04:00.5]}
12... Qc7 {[%clk 0:04:41.6]} 13. Nb5 {[%clk 0:03:47.8]} 13... Qd7 {[%clk
0:04:38.2]} 14. Nxa7 {[%clk 0:03:46.1]} 14... Ra6 {[%clk 0:04:33.1]} 15. Be3
{[%clk 0:03:32.1]} 15... Nf6 {[%clk 0:04:31.4]} 16. a4 {[%clk 0:03:07.9]} 16...
Bd6 {[%clk 0:04:22.6]} 17. Nb5 {[%clk 0:03:03.4]} 17... O-O {[%clk 0:04:21.2]}
18. Nxd6 {[%clk 0:02:59.8]} 18... Qxd6 {[%clk 0:04:20.3]} 19. Qf3 {[%clk
0:02:25]} 19... Rfa8 {[%clk 0:04:16]} 20. Qg3 {[%clk 0:02:15.7]} 20... Qxg3
{[%clk 0:04:14.1]} 21. fxg3 {[%clk 0:02:14.8]} 21... Rxa4 {[%clk 0:04:12.4]} 22.
Rxa4 {[%clk 0:02:13.5]} 22... Rxa4 {[%clk 0:04:11.3]} 23. Bc5 {[%clk 0:01:57.2]}
23... Ne4 {[%clk 0:04:08.7]} 24. Ba3 {[%clk 0:01:52.2]} 24... Nxg3 {[%clk
0:04:04.5]} 25. Kf2 {[%clk 0:01:39.9]} 25... Nf5 {[%clk 0:04:02.3]} 26. Ke2
{[%clk 0:01:28.6]} 26... Re4+ {[%clk 0:03:54.6]} 27. Kd2 {[%clk 0:01:23.1]}
27... Rxe1 {[%clk 0:03:53.5]} 28. Kxe1 {[%clk 0:01:22.3]} 28... Nxh4 {[%clk
0:03:52.8]} 29. g3 {[%clk 0:01:15.9]} 29... Nf5 {[%clk 0:03:50.9]} 30. g4 {[%clk
0:01:12.4]} 30... Ne3 {[%clk 0:03:49.9]} 31. g5 {[%clk 0:01:08.7]} 31... Nxc2+
{[%clk 0:03:49]} 0-1

[Event "Live Chess"]
[Site "Chess.com"]
[Date "2023.05.20"]
[Round "-"]
[White "JanMur7"]
[Black "JohanKjeldahl"]
[Result "1-0"]
[WhiteElo "1988"]
[BlackElo "1846"]
[TimeControl "300"]
[EndTime "14:33:23 PDT"]
[Termination "JanMur7 won by checkmate"]

1. e4 {[%clk 0:04:57]} 1... c5 {[%clk 0:04:57.3]} 2. Nf3 {[%clk 0:04:55.1]} 2...
e6 {[%clk 0:04:56]} 3. c3 {[%clk 0:04:54]} 3... Nc6 {[%clk 0:04:54]} 4. d4
{[%clk 0:04:53.2]} 4... cxd4 {[%clk 0:04:53.1]} 5. cxd4 {[%clk 0:04:53.1]} 5...
d5 {[%clk 0:04:51.9]} 6. exd5 {[%clk 0:04:51.5]} 6... Qxd5 {[%clk 0:04:50.8]} 7.
Nc3 {[%clk 0:04:50.7]} 7... Bb4 {[%clk 0:04:49.1]} 8. Bd2 {[%clk 0:04:49.4]}
8... Qa5 {[%clk 0:04:46.2]} 9. Bc4 {[%clk 0:04:44.5]} 9... Nf6 {[%clk
0:04:41.5]} 10. O-O {[%clk 0:04:43.5]} 10... O-O {[%clk 0:04:39.8]} 11. a3
{[%clk 0:04:42.4]} 11... Bxc3 {[%clk 0:04:38.4]} 12. Bxc3 {[%clk 0:04:42.3]}
12... Qh5 {[%clk 0:04:37.1]} 13. Ne5 {[%clk 0:04:36.5]} 13... Qxd1 {[%clk
0:04:33.7]} 14. Raxd1 {[%clk 0:04:36.4]} 14... Nxe5 {[%clk 0:04:31.1]} 15. dxe5
{[%clk 0:04:36.3]} 15... Ne4 {[%clk 0:04:29.8]} 16. Bb4 {[%clk 0:04:28]} 16...
Re8 {[%clk 0:04:27]} 17. Bb5 {[%clk 0:04:26.8]} 17... Rf8 {[%clk 0:04:09.8]} 18.
Bxf8 {[%clk 0:04:24.5]} 18... Kxf8 {[%clk 0:04:09]} 19. Rd8+ {[%clk 0:04:23.8]}
19... Ke7 {[%clk 0:04:08]} 20. Re8# {[%clk 0:04:23.7]} 1-0

[Event "Live Chess"]
[Site "Chess.com"]
[Date "2023.05.20"]
[Round "-"]
[White "friarnator"]
[Black "SupremeTactician"]
[Result "0-1"]
[WhiteElo "1999"]
[BlackElo "2367"]
[TimeControl "300"]
[EndTime "14:33:34 PDT"]
[Termination "SupremeTactician won by resignation"]

1. e4 {[%clk 0:04:58.1]} 1... e5 {[%clk 0:04:58.5]} 2. Nf3 {[%clk 0:04:55.5]}
2... Nc6 {[%clk 0:04:57.9]} 3. Bb5 {[%clk 0:04:52.5]} 3... a6 {[%clk 0:04:51.4]}
4. Ba4 {[%clk 0:04:51.7]} 4... Nf6 {[%clk 0:04:50.6]} 5. O-O {[%clk 0:04:51]}
5... Nxe4 {[%clk 0:04:50]} 6. d4 {[%clk 0:04:49.3]} 6... Be7 {[%clk 0:04:47.4]}
7. d5 {[%clk 0:04:38.3]} 7... Nc5 {[%clk 0:04:41.1]} 8. dxc6 {[%clk 0:04:32.7]}
8... Nxa4 {[%clk 0:04:38.7]} 9. cxd7+ {[%clk 0:04:31.2]} 9... Bxd7 {[%clk
0:04:32.2]} 10. Nxe5 {[%clk 0:04:28.3]} 10... Be6 {[%clk 0:04:31.1]} 11. c3
{[%clk 0:04:22.1]} 11... Qxd1 {[%clk 0:04:27.9]} 12. Rxd1 {[%clk 0:04:22]} 12...
O-O {[%clk 0:04:26.2]} 13. b3 {[%clk 0:04:20.2]} 13... Nb6 {[%clk 0:04:25.1]}
14. Bf4 {[%clk 0:04:17.6]} 14... Rad8 {[%clk 0:04:21.9]} 15. Nd2 {[%clk
0:04:15.7]} 15... Nd5 {[%clk 0:04:18.5]} 16. Be3 {[%clk 0:04:00.6]} 16... Nxe3
{[%clk 0:04:15.5]} 17. fxe3 {[%clk 0:04:00.5]} 17... Bf6 {[%clk 0:04:12.5]} 18.
Ndf3 {[%clk 0:03:57.5]} 18... Bf5 {[%clk 0:04:01.1]} 19. Nd4 {[%clk 0:03:48.9]}
19... Bxe5 {[%clk 0:03:55.8]} 20. Nxf5 {[%clk 0:03:46.5]} 20... Bxc3 {[%clk
0:03:54.8]} 21. Rxd8 {[%clk 0:03:44.9]} 21... Rxd8 {[%clk 0:03:52.8]} 22. Rc1
{[%clk 0:03:43.3]} 22... Be5 {[%clk 0:03:51.5]} 23. Rc2 {[%clk 0:03:31.7]} 23...
c6 {[%clk 0:03:41.6]} 24. Kf2 {[%clk 0:03:30.1]} 24... g6 {[%clk 0:03:39.8]} 25.
Nh4 {[%clk 0:03:26.8]} 25... f5 {[%clk 0:03:34.6]} 26. Nf3 {[%clk 0:03:25.3]}
26... Bf6 {[%clk 0:03:33.9]} 27. Nd2 {[%clk 0:03:14.4]} 27... Kf7 {[%clk
0:03:26.8]} 28. Nc4 {[%clk 0:03:13.1]} 28... Ke6 {[%clk 0:03:25.8]} 29. Kf3
{[%clk 0:03:10.6]} 29... g5 {[%clk 0:03:22.9]} 30. h3 {[%clk 0:03:08.3]} 30...
h5 {[%clk 0:03:19.3]} 31. g4 {[%clk 0:02:59.9]} 31... fxg4+ {[%clk 0:03:15.2]}
32. hxg4 {[%clk 0:02:59.8]} 32... h4 {[%clk 0:03:14.8]} 33. Nd2 {[%clk 0:02:54]}
33... Rd5 {[%clk 0:03:06.2]} 34. Ne4 {[%clk 0:02:48.2]} 34... Be7 {[%clk
0:03:04.8]} 35. Rh2 {[%clk 0:02:35.1]} 35... Rd1 {[%clk 0:02:54.9]} 36. Nc3
{[%clk 0:02:32.2]} 36... Rf1+ {[%clk 0:02:50.6]} 37. Ke4 {[%clk 0:02:31.3]}
37... Rg1 {[%clk 0:02:39.3]} 38. Kf3 {[%clk 0:02:28.7]} 38... Rg3+ {[%clk
0:02:38.2]} 39. Ke2 {[%clk 0:02:21]} 39... Bc5 {[%clk 0:02:31.3]} 40. Kd3 {[%clk
0:02:20.9]} 40... Rxe3+ {[%clk 0:02:27.4]} 0-1

[Event "Live Chess"]
[Site "Chess.com"]
[Date "2023.05.20"]
[Round "-"]
[White "SavagePawn7"]
[Black "HoarseyHorsey"]
[Result "0-1"]
[WhiteElo "788"]
[BlackElo "1404"]
[TimeControl "300"]
[EndTime "14:33:54 PDT"]
[Termination "HoarseyHorsey won by resignation"]

1. e4 {[%clk 0:04:57.3]} 1... c5 {[%clk 0:04:58.9]} 2. d4 {[%clk 0:04:55.9]}
2... cxd4 {[%clk 0:04:57.8]} 3. c3 {[%clk 0:04:54.9]} 3... dxc3 {[%clk
0:04:56.7]} 4. Nxc3 {[%clk 0:04:53.9]} 4... Nc6 {[%clk 0:04:55.5]} 5. Nf3 {[%clk
0:04:52]} 5... d6 {[%clk 0:04:54.5]} 6. Bc4 {[%clk 0:04:50.5]} 6... Nf6 {[%clk
0:04:51.6]} 7. Bg5 {[%clk 0:04:47.3]} 7... e6 {[%clk 0:04:50.5]} 8. O-O {[%clk
0:04:44.3]} 8... Be7 {[%clk 0:04:49]} 9. Bxf6 {[%clk 0:04:39.8]} 9... Bxf6
{[%clk 0:04:47.9]} 10. Qe2 {[%clk 0:04:31.3]} 10... Ne5 {[%clk 0:04:45.3]} 11.
Nxe5 {[%clk 0:04:28.8]} 11... Bxe5 {[%clk 0:04:45.2]} 12. Rfd1 {[%clk 0:04:23]}
12... O-O {[%clk 0:04:43.1]} 13. Rac1 {[%clk 0:04:20.4]} 13... a6 {[%clk
0:04:39.3]} 14. Qe3 {[%clk 0:04:08.5]} 14... Qf6 {[%clk 0:04:29.7]} 15. g3
{[%clk 0:04:03.5]} 15... b5 {[%clk 0:04:26.9]} 16. f4 {[%clk 0:04:02.3]} 16...
Bxc3 {[%clk 0:04:24.9]} 17. bxc3 {[%clk 0:03:59.6]} 17... Rd8 {[%clk 0:04:11.6]}
18. Bb3 {[%clk 0:03:52.5]} 18... Bb7 {[%clk 0:04:06.9]} 19. e5 {[%clk
0:03:48.9]} 19... dxe5 {[%clk 0:04:04.6]} 20. fxe5 {[%clk 0:03:36.9]} 20... Qf3
{[%clk 0:03:48.4]} 21. Qxf3 {[%clk 0:03:27.6]} 21... Bxf3 {[%clk 0:03:48.3]} 22.
Rxd8+ {[%clk 0:03:24.3]} 22... Rxd8 {[%clk 0:03:47.1]} 23. Kf2 {[%clk
0:03:22.7]} 23... Bd5 {[%clk 0:03:38.2]} 24. Bxd5 {[%clk 0:03:20.5]} 24... Rxd5
{[%clk 0:03:37.1]} 25. a3 {[%clk 0:03:13.9]} 25... Rxe5 {[%clk 0:03:33.6]} 26.
c4 {[%clk 0:03:08.9]} 26... Rc5 {[%clk 0:03:27.4]} 27. Ke2 {[%clk 0:03:05.7]}
27... Rxc4 {[%clk 0:03:20.5]} 28. Kd2 {[%clk 0:03:02.1]} 28... Rxc1 {[%clk
0:03:19]} 29. Kxc1 {[%clk 0:03:01.1]} 29... Kf8 {[%clk 0:03:18.5]} 30. Kc2
{[%clk 0:02:58.5]} 30... Ke7 {[%clk 0:03:18]} 31. Kc3 {[%clk 0:02:57.6]} 31...
Kd6 {[%clk 0:03:17.6]} 32. Kd4 {[%clk 0:02:55.9]} 32... f6 {[%clk 0:03:15.8]}
33. g4 {[%clk 0:02:53.8]} 33... g6 {[%clk 0:03:09.6]} 0-1

[Event "Live Chess"]
[Site "Chess.com"]
[Date "2023.05.20"]
[Round "-"]
[White "Hedgehog1963"]
[Black "Doge_Dandolo"]
[Result "0-1"]
[WhiteElo "1016"]
[BlackElo "2038"]
[TimeControl "300"]
[EndTime "14:34:13 PDT"]
[Termination "Doge_Dandolo won by resignation"]

1. d4 {[%clk 0:04:56.3]} 1... d5 {[%clk 0:04:57.9]} 2. Nf3 {[%clk 0:04:54.8]}
2... Nf6 {[%clk 0:04:55.9]} 3. Bf4 {[%clk 0:04:53.4]} 3... c5 {[%clk 0:04:51.6]}
4. e3 {[%clk 0:04:51.3]} 4... Qb6 {[%clk 0:04:49.7]} 5. Qc1 {[%clk 0:04:49.3]}
5... Bf5 {[%clk 0:04:47.8]} 6. c3 {[%clk 0:04:45.7]} 6... e6 {[%clk 0:04:46.3]}
7. Nbd2 {[%clk 0:04:44.6]} 7... Nc6 {[%clk 0:04:44.5]} 8. Nh4 {[%clk 0:04:42]}
8... Be4 {[%clk 0:04:42.2]} 9. f3 {[%clk 0:04:41]} 9... Bg6 {[%clk 0:04:40.7]}
10. Nxg6 {[%clk 0:04:40.2]} 10... hxg6 {[%clk 0:04:39.6]} 11. Bd3 {[%clk
0:04:37.5]} 11... Rc8 {[%clk 0:04:33.8]} 12. Qc2 {[%clk 0:04:16.5]} 12... cxd4
{[%clk 0:04:29.9]} 13. exd4 {[%clk 0:04:15.5]} 13... Nb4 {[%clk 0:04:28.6]} 14.
Qb1 {[%clk 0:04:10.2]} 14... Nxd3+ {[%clk 0:04:27]} 15. Qxd3 {[%clk 0:04:09.4]}
15... Be7 {[%clk 0:04:25]} 16. O-O {[%clk 0:04:02.7]} 16... Bd6 {[%clk
0:04:22.1]} 17. Bg5 {[%clk 0:03:58.1]} 17... Bxh2+ {[%clk 0:04:19.5]} 18. Kf2
{[%clk 0:03:56]} 18... Bd6 {[%clk 0:04:10.7]} 19. Rh1 {[%clk 0:03:50.1]} 19...
Ke7 {[%clk 0:04:05.6]} 20. Nb3 {[%clk 0:03:18.7]} 20... Qc7 {[%clk 0:03:58.9]}
21. Ke2 {[%clk 0:03:06.7]} 21... Bf4 {[%clk 0:03:55.3]} 22. Bxf4 {[%clk
0:03:04.7]} 22... Qxf4 {[%clk 0:03:54]} 23. Nd2 {[%clk 0:02:58]} 23... Rh2
{[%clk 0:03:50.7]} 24. Rag1 {[%clk 0:02:53.4]} 24... Rch8 {[%clk 0:03:48.8]} 25.
Kd1 {[%clk 0:02:49.1]} 25... Rxh1 {[%clk 0:03:46.7]} 0-1

[Event "Live Chess"]
[Site "Chess.com"]
[Date "2023.05.20"]
[Round "-"]
[White "ViktorTheCoolBoy"]
[Black "omisoc"]
[Result "1-0"]
[WhiteElo "2513"]
[BlackElo "2145"]
[TimeControl "300"]
[EndTime "14:34:40 PDT"]
[Termination "ViktorTheCoolBoy won by resignation"]

1. d4 {[%clk 0:04:56.4]} 1... g6 {[%clk 0:04:53.7]} 2. Nf3 {[%clk 0:04:55.4]}
2... Bg7 {[%clk 0:04:52.6]} 3. e4 {[%clk 0:04:52.9]} 3... d6 {[%clk 0:04:49.3]}
4. Bd3 {[%clk 0:04:51]} 4... Nd7 {[%clk 0:04:44.5]} 5. O-O {[%clk 0:04:44.2]}
5... e5 {[%clk 0:04:42.7]} 6. c3 {[%clk 0:04:42.5]} 6... Ngf6 {[%clk 0:04:41.1]}
7. Re1 {[%clk 0:04:41]} 7... O-O {[%clk 0:04:39.7]} 8. Nbd2 {[%clk 0:04:38.2]}
8... Re8 {[%clk 0:04:38]} 9. dxe5 {[%clk 0:04:36.2]} 9... dxe5 {[%clk
0:04:35.6]} 10. Nc4 {[%clk 0:04:34.4]} 10... b6 {[%clk 0:04:33.9]} 11. a4 {[%clk
0:04:33]} 11... a6 {[%clk 0:04:31]} 12. Qc2 {[%clk 0:04:31.5]} 12... Bb7 {[%clk
0:04:29.7]} 13. h3 {[%clk 0:04:29.4]} 13... Nc5 {[%clk 0:04:27.9]} 14. Ncxe5
{[%clk 0:04:19.5]} 14... Nxd3 {[%clk 0:04:25.7]} 15. Nxd3 {[%clk 0:04:18.3]}
15... Bxe4 {[%clk 0:04:22]} 16. Rd1 {[%clk 0:04:15.2]} 16... Qd5 {[%clk
0:04:14.2]} 17. Nfe1 {[%clk 0:04:09.4]} 17... Rad8 {[%clk 0:04:11.3]} 18. f3
{[%clk 0:04:06.7]} 18... Bf5 {[%clk 0:04:09.4]} 19. Bf4 {[%clk 0:04:02.4]} 19...
Rxe1+ {[%clk 0:04:02.7]} 20. Nxe1 {[%clk 0:04:01.4]} 20... Bxc2 {[%clk
0:03:59.9]} 21. Rxd5 {[%clk 0:03:59.5]} 21... Nxd5 {[%clk 0:03:58.2]} 22. Bg5
{[%clk 0:03:57.2]} 22... f6 {[%clk 0:03:54.7]} 23. Bd2 {[%clk 0:03:55.8]} 23...
Bf5 {[%clk 0:03:49.5]} 24. g4 {[%clk 0:03:54.7]} 24... Bc8 {[%clk 0:03:46.2]}
25. c4 {[%clk 0:03:53.4]} 25... Ne7 {[%clk 0:03:41.5]} 26. Bc3 {[%clk
0:03:52.1]} 26... f5 {[%clk 0:03:39.1]} 27. Bxg7 {[%clk 0:03:49.4]} 27... Kxg7
{[%clk 0:03:38.2]} 28. a5 {[%clk 0:03:47.3]} 28... bxa5 {[%clk 0:03:34.8]} 29.
Rxa5 {[%clk 0:03:45.4]} 29... Kf6 {[%clk 0:03:29.8]} 30. Kf2 {[%clk 0:03:41.4]}
30... Rd2+ {[%clk 0:03:26.6]} 31. Ke3 {[%clk 0:03:39.9]} 31... Rxb2 {[%clk
0:03:24.7]} 32. Nd3 {[%clk 0:03:39]} 32... Rb3 {[%clk 0:03:20.6]} 33. Kd2 {[%clk
0:03:36.1]} 33... Be6 {[%clk 0:03:10.1]} 34. Rxa6 {[%clk 0:03:27.3]} 34... Rb6
{[%clk 0:03:08.9]} 35. Ra4 {[%clk 0:03:25]} 35... Rc6 {[%clk 0:03:06.8]} 36. c5
{[%clk 0:03:19.2]} 36... fxg4 {[%clk 0:03:02.6]} 37. hxg4 {[%clk 0:03:17.4]}
37... h5 {[%clk 0:02:59.7]} 38. gxh5 {[%clk 0:03:14.6]} 38... gxh5 {[%clk
0:02:58.8]} 39. Ke3 {[%clk 0:03:10.7]} 39... Nf5+ {[%clk 0:02:53.7]} 40. Kf4
{[%clk 0:03:04.8]} 40... Bb3 {[%clk 0:02:41.1]} 41. Ra8 {[%clk 0:03:02.3]} 41...
Bc2 {[%clk 0:02:35.4]} 42. Ne5 {[%clk 0:03:00.4]} 42... Rxc5 {[%clk 0:02:31.5]}
43. Nd7+ {[%clk 0:02:59.3]} 1-0

[Event "Live Chess"]
[Site "Chess.com"]
[Date "2023.05.20"]
[Round "-"]
[White "Nazar_777"]
[Black "Inglaterra"]
[Result "0-1"]
[WhiteElo "1606"]
[BlackElo "2033"]
[TimeControl "300"]
[EndTime "14:34:42 PDT"]
[Termination "Inglaterra won by checkmate"]

1. e3 {[%clk 0:04:52.8]} 1... e5 {[%clk 0:04:55.8]} 2. h4 {[%clk 0:04:49.8]}
2... Nf6 {[%clk 0:04:54.3]} 3. a3 {[%clk 0:04:49.3]} 3... d5 {[%clk 0:04:53.1]}
4. c4 {[%clk 0:04:48.8]} 4... Nc6 {[%clk 0:04:49.5]} 5. cxd5 {[%clk 0:04:48]}
5... Nxd5 {[%clk 0:04:47.9]} 6. Nc3 {[%clk 0:04:47.5]} 6... Be6 {[%clk
0:04:44.9]} 7. Nf3 {[%clk 0:04:46.7]} 7... Be7 {[%clk 0:04:40.2]} 8. Be2 {[%clk
0:04:45.8]} 8... O-O {[%clk 0:04:36.7]} 9. Qc2 {[%clk 0:04:44.7]} 9... Qd7
{[%clk 0:04:29.5]} 10. Ng5 {[%clk 0:04:43.6]} 10... Bf5 {[%clk 0:04:15.3]} 11.
Bd3 {[%clk 0:04:41.8]} 11... Bxd3 {[%clk 0:04:11.2]} 12. Qxd3 {[%clk 0:04:40.6]}
12... Nf6 {[%clk 0:04:05.7]} 13. Qc2 {[%clk 0:04:38.6]} 13... Rad8 {[%clk
0:03:53]} 14. Nce4 {[%clk 0:04:37.2]} 14... Nxe4 {[%clk 0:03:46.3]} 15. Qxe4
{[%clk 0:04:35.9]} 15... g6 {[%clk 0:03:32.5]} 16. Qc2 {[%clk 0:04:33.9]} 16...
Kg7 {[%clk 0:03:22.2]} 17. b4 {[%clk 0:04:32]} 17... f6 {[%clk 0:03:05]} 18. Ne4
{[%clk 0:04:26.8]} 18... Qg4 {[%clk 0:02:53.2]} 19. g3 {[%clk 0:04:20.1]} 19...
Qf3 {[%clk 0:02:45]} 20. Rf1 {[%clk 0:04:16.1]} 20... f5 {[%clk 0:02:35.4]} 21.
Ng5 {[%clk 0:04:13.7]} 21... Bxg5 {[%clk 0:02:34.1]} 22. hxg5 {[%clk 0:04:12]}
22... Rfe8 {[%clk 0:02:08.7]} 23. Bb2 {[%clk 0:04:10.1]} 23... Nd4 {[%clk
0:01:56.8]} 24. Bxd4 {[%clk 0:04:07.6]} 24... exd4 {[%clk 0:01:55.4]} 25. Qxc7+
{[%clk 0:04:03.4]} 25... Kg8 {[%clk 0:01:54.1]} 26. Rd1 {[%clk 0:03:45.6]} 26...
d3 {[%clk 0:01:51.6]} 27. Qc4+ {[%clk 0:03:36]} 27... Rd5 {[%clk 0:01:40.9]} 28.
Qxd5+ {[%clk 0:03:22.9]} 28... Qxd5 {[%clk 0:01:40.8]} 29. f4 {[%clk 0:03:19.8]}
29... Qg2 {[%clk 0:01:37.1]} 30. Rf2 {[%clk 0:03:16.9]} 30... Qxg3 {[%clk
0:01:30]} 31. Kf1 {[%clk 0:03:15.5]} 31... Rc8 {[%clk 0:01:13.7]} 32. Rg2 {[%clk
0:03:12]} 32... Qf3+ {[%clk 0:01:10.7]} 33. Kg1 {[%clk 0:03:04.2]} 33... Qxd1+
{[%clk 0:01:08.6]} 34. Kh2 {[%clk 0:03:01.9]} 34... Rc1 {[%clk 0:01:08]} 35. e4
{[%clk 0:03:00]} 35... Qh5+ {[%clk 0:01:06.3]} 36. Kg3 {[%clk 0:02:58.1]} 36...
Qg4+ {[%clk 0:01:05.4]} 37. Kf2 {[%clk 0:02:56.5]} 37... Qxf4# {[%clk
0:01:04.4]} 0-1

[Event "Live Chess"]
[Site "Chess.com"]
[Date "2023.05.20"]
[Round "-"]
[White "jk0110"]
[Black "CameronM1234"]
[Result "1-0"]
[WhiteElo "1110"]
[BlackElo "1119"]
[TimeControl "300"]
[EndTime "14:34:51 PDT"]
[Termination "jk0110 won by checkmate"]

1. e4 {[%clk 0:04:57.6]} 1... g6 {[%clk 0:04:58.8]} 2. d4 {[%clk 0:04:55.3]}
2... Bg7 {[%clk 0:04:58.7]} 3. Nf3 {[%clk 0:04:47.1]} 3... d6 {[%clk 0:04:57.5]}
4. Bd3 {[%clk 0:04:42.8]} 4... Nf6 {[%clk 0:04:51.5]} 5. e5 {[%clk 0:04:27.3]}
5... dxe5 {[%clk 0:04:49.9]} 6. dxe5 {[%clk 0:04:26.2]} 6... Ng4 {[%clk
0:04:43.9]} 7. h3 {[%clk 0:04:23.9]} 7... Nxe5 {[%clk 0:04:43]} 8. Nxe5 {[%clk
0:04:13.1]} 8... Bxe5 {[%clk 0:04:42.9]} 9. Bh6 {[%clk 0:04:05]} 9... Bxb2
{[%clk 0:04:31.2]} 10. Nd2 {[%clk 0:03:49.6]} 10... Bc3 {[%clk 0:03:55.6]} 11.
Rb1 {[%clk 0:03:37.8]} 11... b6 {[%clk 0:03:54]} 12. Rb3 {[%clk 0:03:19.9]}
12... Bd4 {[%clk 0:03:20.9]} 13. O-O {[%clk 0:03:09.7]} 13... Bb7 {[%clk
0:03:15.6]} 14. Nf3 {[%clk 0:02:56.7]} 14... Bf6 {[%clk 0:03:11.4]} 15. Bb5+
{[%clk 0:02:38.2]} 15... Nc6 {[%clk 0:03:00.4]} 16. Bxc6+ {[%clk 0:02:27.6]}
16... Bxc6 {[%clk 0:02:58.9]} 17. Rd3 {[%clk 0:02:26.5]} 17... Qc8 {[%clk
0:02:39.3]} 18. Nd4 {[%clk 0:02:14.7]} 18... Bxd4 {[%clk 0:02:07.1]} 19. Rxd4
{[%clk 0:02:14.6]} 19... Qb7 {[%clk 0:02:03.1]} 20. Qg4 {[%clk 0:01:44.2]} 20...
f6 {[%clk 0:01:19.3]} 21. Re1 {[%clk 0:01:33.1]} 21... Kf7 {[%clk 0:01:07.9]}
22. Qe6+ {[%clk 0:01:11.2]} 22... Ke8 {[%clk 0:01:03.9]} 23. Qxe7# {[%clk
0:01:09.6]} 1-0

[Event "Live Chess"]
[Site "Chess.com"]
[Date "2023.05.20"]
[Round "-"]
[White "scarletmojito"]
[Black "LiamBellwood"]
[Result "0-1"]
[WhiteElo "1870"]
[BlackElo "2069"]
[TimeControl "300"]
[EndTime "14:34:56 PDT"]
[Termination "LiamBellwood won by checkmate"]

1. e4 {[%clk 0:04:53]} 1... e6 {[%clk 0:04:59.9]} 2. d4 {[%clk 0:04:51.3]} 2...
d5 {[%clk 0:04:59.7]} 3. Nc3 {[%clk 0:04:50.2]} 3... Nf6 {[%clk 0:04:58.8]} 4.
e5 {[%clk 0:04:49.1]} 4... Ng8 {[%clk 0:04:57.8]} 5. f4 {[%clk 0:04:48.3]} 5...
c5 {[%clk 0:04:57.4]} 6. Nf3 {[%clk 0:04:47.3]} 6... Nc6 {[%clk 0:04:57.1]} 7.
Be3 {[%clk 0:04:46.2]} 7... Nh6 {[%clk 0:04:56.8]} 8. Qd2 {[%clk 0:04:45]} 8...
Nf5 {[%clk 0:04:56.2]} 9. Bb5 {[%clk 0:04:41.4]} 9... Bd7 {[%clk 0:04:55.2]} 10.
O-O {[%clk 0:04:37.9]} 10... Qb6 {[%clk 0:04:49]} 11. a4 {[%clk 0:04:33]} 11...
Nxe3 {[%clk 0:04:38.1]} 12. a5 {[%clk 0:04:17.6]} 12... Nxf1 {[%clk 0:04:28.7]}
13. Kxf1 {[%clk 0:03:13.5]} 13... Qc7 {[%clk 0:04:24.4]} 14. a6 {[%clk
0:03:06.6]} 14... b6 {[%clk 0:04:21.2]} 15. f5 {[%clk 0:02:58.7]} 15... cxd4
{[%clk 0:04:13.9]} 16. fxe6 {[%clk 0:02:45.8]} 16... fxe6 {[%clk 0:03:43.2]} 17.
Nxd5 {[%clk 0:02:21.1]} 17... exd5 {[%clk 0:03:33.3]} 18. e6 {[%clk 0:02:20.6]}
18... Bxe6 {[%clk 0:03:24.3]} 19. Nxd4 {[%clk 0:02:19.7]} 19... Bd7 {[%clk
0:03:18.1]} 20. Re1+ {[%clk 0:02:12]} 20... Be7 {[%clk 0:03:08.6]} 21. Qg5
{[%clk 0:01:50.1]} 21... O-O+ {[%clk 0:03:04.5]} 22. Qf6 {[%clk 0:00:11.1]}
22... Rxf6+ {[%clk 0:03:03.1]} 23. Kg1 {[%clk 0:00:09.8]} 23... Nxd4 {[%clk
0:03:02.5]} 24. Bxd7 {[%clk 0:00:08.3]} 24... Qxd7 {[%clk 0:03:01.7]} 25. Rxe7
{[%clk 0:00:07.9]} 25... Qxe7 {[%clk 0:03:00.3]} 26. h3 {[%clk 0:00:07.8]} 26...
Qe1+ {[%clk 0:03:00.2]} 27. Kh2 {[%clk 0:00:07.7]} 27... Nf3+ {[%clk 0:02:58.4]}
28. gxf3 {[%clk 0:00:06.8]} 28... Rxf3 {[%clk 0:02:57.5]} 29. h4 {[%clk
0:00:06.3]} 29... Qg3+ {[%clk 0:02:55.9]} 30. Kh1 {[%clk 0:00:00.4]} 30... Rf1#
{[%clk 0:02:55.8]} 0-1